Cogmind - Beta 16 @@@ ROGUE MODE // 2025.11.14 @ 01:54:51 Player: Red Box Result: Destroyed by OW-7DN(R) with Subdweller Shrapnel Launcher Performance ------------- Evolutions (0) 0 Regions Visited (3) 600 Robots Destroyed (22) 110 Value Destroyed (369) 369 Prototype IDs (1) 20 Alien Tech Used (0) 0 Bonus (0) 0 TOTAL SCORE: 1099 Bonus ------- None Cogmind --------- Core Integrity 0/250 Matter 101/300 Energy 19/100 System Corruption 2% Temperature Cool (0) Movement Rolling (100) Location -10/Subcaves Parts ------- > --- POWER (1) -------- (None) > --- PROPULSION (2) --- Compact Wheel Compact Wheel > --- UTILITY (2) ------ Improved Heat Sink Large Storage Unit > --- WEAPON (2) ------- Particle Gun Hammer > --- INVENTORY (15) --- Light Treads Light Treads Wheel High-capacity Storage Unit Light Humpback Large Matter Pod (150) Experimental Sensor Array Hacking Suite Particle Gun Improved Light Cannon Improved Light Cannon Improved Light Cannon EMP Blaster Peak State ------------ > --- POWER ------------ Ion Engine > --- PROPULSION ------- Compact Wheel Compact Wheel > --- UTILITY ---------- Large Storage Unit Experimental Sensor Array > --- WEAPON ----------- Improved Light Cannon Improved Light Cannon > --- INVENTORY -------- Light Treads Light Treads Wheel Compact Wheel Improved Heat Sink High-capacity Storage Unit Large Matter Pod Medium Armor Plating Particle Gun Particle Gun Improved Light Cannon Improved Light Cannon EMP Blaster Rocket Launcher Hammer [Rating: 19] Favorites ----------- Power Ion Engine Engine Ion Engine Propulsion Aluminum Leg Leg Aluminum Leg Wheel Compact Wheel Utility Large Storage Unit Device Improved Heat Sink Storage Large Storage Unit Protection Medium Armor Plating Weapon Particle Gun Energy Gun Particle Gun Ballistic Cannon Improved Light Cannon Launcher EMP Blaster Impact Weapon Hammer Build | -11 -10 -10 -10 ------- Run | Yrd Mat Min Sub Slots Evolved . | . . . . Power . | . . . . Propulsion . | . . . . Utility . | . . . . Weapon . | . . . . Parts Attached 30 | 7 14 3 6 Power 3 | 1 2 . . Engine 3 | 1 2 . . Core . | . . . . Reactor . | . . . . Propulsion 8 | 2 3 1 2 Treads . | . . . . Leg 3 | 2 1 . . Wheel 5 | . 2 1 2 Hover . | . . . . Flight . | . . . . Utility 8 | 2 5 1 . Device 3 | 1 1 1 . Storage 4 | 1 3 . . Processor . | . . . . Hackware . | . . . . Protection 1 | . 1 . . Artifact . | . . . . Weapon 11 | 2 4 1 4 Energy Gun 6 | 2 2 . 2 Energy Cannon . | . . . . Ballistic Gun . | . . . . Ballistic Cannon 2 | . 2 . . Launcher 2 | . . 1 1 Special Weapon . | . . . . Impact Weapon 1 | . . . 1 Slashing Weapon . | . . . . Piercing Weapon . | . . . . Special Melee Weapon . | . . . . Unidentified Prototypes 1 | . . 1 . Parts Lost 7 | . 1 . 6 Power 2 | . 1 . 1 Propulsion 2 | . . . 2 Utility 1 | . . . 1 Weapon 2 | . . . 2 Highest Loss Streak 4 | . 1 . 4 To Critical Strikes . | . . . . Average Backups 12 | 3 11 15 15 Power . | . . . . Propulsion 4 | 2 4 4 4 Utility 3 | . 3 4 5 Weapon 4 | . 3 7 5 Tool/Special . | . . . . Unused Backups 13 | . 4 . 9 Power . | . . . . Propulsion 3 | . . . 3 Utility 5 | . 1 . 4 Weapon 4 | . 2 . 2 Tool/Special 1 | . 1 . . Average Slot Usage (%) 98 | . 98 100 95 Engine 13 | . 12 14 13 Leg 14 | . 22 . . Wheel 13 | . 5 28 25 Device 8 | . 12 . 8 Storage 14 | . 14 14 14 Protection 5 | . 1 14 3 Energy Gun 16 | . 24 . 15 Ballistic Cannon 11 | . 3 27 8 Peak Build Rating 19 | 9 13 19 14 Average Rating 12 | 7 12 12 12 On Entrance 8 | . 9 12 13 Avg Prop Armor Cover (%) . | . . . . Naked Turns . | . . . . Heaviest Build 60 | 11 40 60 60 Greatest Support 32 | 20 32 32 32 Greatest Overweight (x) 2 | 1 1 1 2 Average Overweight (x) . | . . 1 . Largest Inventory Capacity 20 | 8 20 20 20 Average Capacity 13 | 7 12 16 16 Most Carried 18 | 5 15 18 18 Average Carried 12 | 3 11 15 15 Final Capacity 20 | 8 15 20 15 Final Carried 18 | 5 15 18 14 Class Distribution -------------------- 100% | Mutant Dominant Class ---------------- Mutant | -10/Materials Mutant | -10/Mines Mutant | -10/Subcaves Resources | -11 -10 -10 -10 ----------- Run | Yrd Mat Min Sub Matter Collected 914 | 198 370 330 16 Remotely . | . . . . Salvage Created 618 | 32 533 40 13 Parts 31 | 3 27 . 1 Haulers Intercepted 2 | . 2 . . Recyclers Shooed . | . . . . Parts Field Recycled . | . . . . Retrieved Matter . | . . . . Parts Self-Destructed . | . . . . Prevented . | . . . . Parts Restored . | . . . . Kills | -11 -10 -10 -10 ------- Run | Yrd Mat Min Sub Combat Hostiles Destroyed 23 | . 11 11 1 Guns 11 | . 11 . . Cannons 9 | . . 9 . AOE 3 | . . 2 1 Classes Destroyed 10 | 1 7 1 1 Worker 1 | . 1 . . Tunneler 2 | 2 . . . Hauler 2 | . 2 . . Recycler 1 | . 1 . . Mechanic 1 | . 1 . . Watcher 3 | . 3 . . Swarmer 6 | . 6 . . Grunt 5 | . 5 . . Subdweller 1 | . . . 1 Assembled 11 | . . 11 . Best Kill Streak 4 | 1 4 3 1 Combat Bots Only 3 | . 3 3 1 Max Kills in Single Turn 2 | 1 2 2 1 Gunslinging . | . . . . Exploded 2 | . . 2 1 Melee . | . . . . Uniques/NPCs Destroyed . | . . . . Combat | -11 -10 -10 -10 -------- Run | Yrd Mat Min Sub Hostile Shots Fired 82 | . 37 18 27 Missed 26 | . 8 5 13 Hits 56 | . 29 13 14 Melee 2 | . . 2 . Projectile 54 | . 29 11 14 AOE 8 | . . . 8 Damage Taken 1171 | . 276 199 696 Core 278 | . 36 39 203 Absorbed by Shields . | . . . . Regen/Repaired (Parts) 46 | . 46 . . Core Remaining (%) 100 | 100 . . . Volleys Fired 97 | 7 42 32 16 Largest 2 | 2 2 2 2 Hottest 130 | 80 130 66 98 Shots Fired 190 | 14 84 64 28 Gun 101 | 14 84 . 3 Cannon 72 | . . 63 9 Launcher 17 | . . 1 16 Special . | . . . . Kinetic 72 | . . 63 9 Thermal 101 | 14 84 . 3 Explosive 3 | . . 1 2 Electromagnetic 14 | . . . 14 Robot Hit Streak 8 | 3 4 4 8 Robot Miss Streak 9 | 1 9 9 3 Penetration Max . | . . . . Secondary Targets . | . . . . Shots Hit Robots 85 | 9 36 23 17 Core Hits 37 | 2 21 11 3 Critical Kills . | . . . . Critical Parts Destroyed . | . . . . Critical Strikes 1 | . . 1 . Blast 1 | . . 1 . Melee Attacks 2 | . . . 2 Impact 2 | . . . 2 Slashing . | . . . . Piercing . | . . . . Sneak Attacks . | . . . . Combat Hostiles . | . . . . Follow-up Attacks . | . . . . Damage Inflicted 1922 | 103 666 587 566 Guns 782 | 103 666 . 13 Cannons 649 | . . 498 151 Explosions 491 | . . 89 402 Melee . | . . . . Ramming . | . . . . Kinetic 649 | . . 498 151 Thermal 782 | 103 666 . 13 Explosive 270 | . . 89 181 Electromagnetic 221 | . . . 221 Impact . | . . . . Slashing . | . . . . Piercing . | . . . . Highest Corruption 2 | . 1 1 2 Average Corruption 1 | . 1 1 1 Corruption Purged . | . . . . Corruption Blocked . | . . . . Effects 6 | . . 4 2 Matter Fused 2 | . . . 2 Energy Discharges 1 | . . 1 . Data Loss (minor) 1 | . . 1 . Data Loss (major) 1 | . . 1 . Misfires 1 | . . 1 . Overload Shots . | . . . . Overflow Damage 20 | . . 20 . Projectiles 14 | . . 14 . Explosions 6 | . . 6 . Melee . | . . . . Knockbacks 10 | . . 8 2 Impact . | . . . . Kinetic 10 | . . 8 2 Secondary . | . . . . Self-Inflicted Damage 104 | . . . 104 Shots 5 | . . . 5 Rammed . | . . . . Targets Rammed . | . . . . Kicked . | . . . . Crushed . | . . . . Highest Temperature 303 | 90 303 105 . Average Temperature 59 | 37 74 36 . Received Heat Transfer 142 | . 57 40 45 Siege Activations . | . . . . Martial Activations . | . . . . Shielding Activations . | . . . . Robots Disrupted . | . . . . Combat Hostiles . | . . . . Robots Corrupted . | . . . . Combat Hostiles . | . . . . Parts Fried . | . . . . Impact Corruptions . | . . . . Robots Melted . | . . . . Combat Hostiles . | . . . . Parts Melted 4 | . 3 . 1 Heat Transferred 1816 | 225 1554 . 37 Parts Sabotaged . | . . . . Parts Stolen . | . . . . Parts Stripped . | . . . . Power Chain Reactions 1 | . . . 1 Alert | -11 -10 -10 -10 ------- Run | Yrd Mat Min Sub Maximum Alert Level . | . . . . Low Security (%) 100 | 100 100 100 . Level 1 . | . . . . Level 2 . | . . . . Level 3 . | . . . . Level 4 . | . . . . Level 5 . | . . . . High Security . | . . . . Max Security . | . . . . Peak Influence 84 | 5 84 6 . Initial . | . . . . Average 13 | . 20 . . Influence Increases 403 | 10 383 10 . Destroy 0b10 Robot/C 220 | . 220 . . Destroy 0b10 Robot/NC 50 | 10 40 . . Destroy Leader 50 | . 50 . . Successful Hack 26 | . 26 . . Destroy Structure 12 | . 2 10 . Lose Combat Pursuer 45 | . 45 . . Influence Decreases 403 | 10 383 10 . Time Decay 387 | 10 373 4 . Lost Part 10 | . 10 . . Lost Ally 6 | . . 6 . Squads Dispatched 1 | . 1 . . Investigation . | . . . . Extermination . | . . . . Reinforcement 1 | . 1 . . Assault . | . . . . Garrison . | . . . . Intercept . | . . . . Searches Triggered . | . . . . Construction Impeded . | . . . . Haulers Reinforced . | . . . . Active Scanning Responses . | . . . . Cargo Convoy Interrupts . | . . . . Stealth | -11 -10 -10 -10 --------- Run | Yrd Mat Min Sub Distress Signals . | . . . . Communications Jammed . | . . . . Distress Signals . | . . . . Times Spotted 44 | . 25 13 6 Peak Tracking Total 3 | . 3 2 2 Tactical Retreats 6 | . 3 . 3 Traps | -11 -10 -10 -10 ------- Run | Yrd Mat Min Sub Traps Triggered . | . . . . Indirectly . | . . . . Trap Hack Attempts . | . . . . Triggered . | . . . . Disarmed . | . . . . Reprogrammed . | . . . . Reused . | . . . . Traps Extracted . | . . . . Installed . | . . . . Triggered . | . . . . Machines | -11 -10 -10 -10 ---------- Run | Yrd Mat Min Sub Machines Disabled . | . . . . Max in Single Turn . | . . . . Machines Repaired . | . . . . Machines Dismantled . | . . . . Machines Sabotaged . | . . . . Overloaded Fab Kills . | . . . . Hacking | -11 -10 -10 -10 --------- Run | Yrd Mat Min Sub Machines Accessed 10 | . 10 . . Terminals 7 | . 7 . . Fabricators . | . . . . Repair Stations 1 | . 1 . . Recycling Units 2 | . 2 . . Scanalyzers . | . . . . Garrison Access . | . . . . Total Hacks 43 | . 43 . . Successful 22 | . 22 . . Failed 20 | . 20 . . Catastrophic . | . . . . Database Lockouts 1 | . 1 . . Manual 32 | . 32 . . Terminals 32 | . 32 . . Fabricators . | . . . . Repair Stations 4 | . 4 . . Recycling Units 7 | . 7 . . Scanalyzers . | . . . . Garrison Access . | . . . . Terminal Hacks 6 | . 6 . . Robot Analysis 3 | . 3 . . Terminal Index 1 | . 1 . . Locate Traps 2 | . 2 . . Fabricator Hacks . | . . . . Repair Station Hacks 3 | . 3 . . Scan Component 2 | . 2 . . Repair 1 | . 1 . . Recycling Unit Hacks 2 | . 2 . . Retrieve Components 2 | . 2 . . Scanalyzer . | . . . . Garrison Access Hacks . | . . . . Unauthorized Hacks 11 | . 11 . . Terminals 10 | . 10 . . Track 2 | . 2 . . Assimilate 4 | . 4 . . Botnet 3 | . 3 . . Operators 1 | . 1 . . Fabricators . | . . . . Repair Stations . | . . . . Recycling Units 1 | . 1 . . Reject 1 | . 1 . . Scanalyzers . | . . . . Garrison Access . | . . . . Data Cores Recovered . | . . . . Used . | . . . . Hacking Detections 10 | . 10 . . Full Trace Events 1 | . 1 . . Feedback Events 1 | . 1 . . Corruption 1 | . 1 . . Feedback Blocked . | . . . . Robot Schematics Acquired . | . . . . Robots Built . | . . . . Authchips . | . . . . Time . | . . . . Total Robot Build Rating . | . . . . Part Schematics Acquired . | . . . . Parts Built . | . . . . Authchips . | . . . . Time . | . . . . Total Part Build Rating . | . . . . Part Studies Acquired . | . . . . Parts Repaired 1 | . 1 . . Time 32 | . 32 . . Parts Recycled . | . . . . Recycled Matter . | . . . . Retrieved Matter . | . . . . Retrieved Components 10 | . 10 . . Parts Scanalyzed . | . . . . Part Schematics Acquired . | . . . . Parts Damaged . | . . . . Bothacking | -11 -10 -10 -10 ------------ Run | Yrd Mat Min Sub Used RIF Installer . | . . . . Robots Hacked . | . . . . Non-combat . | . . . . Combat . | . . . . Robot Hacks Applied . | . . . . Relay Couplers Released . | . . . . Fabnet Peak Effective % . | . . . . Robots Rewired . | . . . . Allies Hacked . | . . . . Hacks Repelled . | . . . . Allies | -11 -10 -10 -10 -------- Run | Yrd Mat Min Sub Total Allies 4 | . 2 2 . Largest Group 2 | . 2 2 . Highest-Rated Group 46 | . 20 46 . Highest-Rated Ally 31 | . 10 31 . Total Orders 10 | . 8 2 . STAY 5 | . 4 1 . FOLLOW 5 | . 4 1 . Ally Attacks 16 | . . 16 . Total Damage 188 | . . 188 . Kills 4 | . . 4 . Allies Corrupted . | . . . . Allies Melted . | . . . . Intel | -11 -10 -10 -10 ------- Run | Yrd Mat Min Sub Active Infowar (turns) 880 | 76 803 1 . Sensors 1 | . . 1 . Terrain 879 | 76 803 . . Robot Analysis Total 3 | . 3 . . Derelict Logs Recovered 1 | . . 1 . Drone Launches . | . . . . Drone Recoveries . | . . . . Exploration | -11 -10 -10 -10 ------------- Run | Yrd Mat Min Sub Turns Passed 3785 | 109 2341 1094 241 Spaces Moved 2297 | 60 1305 799 133 Core 8 | 8 . . . Treads . | . . . . Legs 980 | 52 928 . . Wheels 1309 | . 377 799 133 Hover . | . . . . Flight . | . . . . Fastest Speed 50 | 50 100 115 100 Average Speed 127 | 114 137 115 105 Slowest Speed 190 | 120 190 115 130 Overloaded Moves . | . . . . Propulsion Burnouts . | . . . . Robots Hopped . | . . . . Potential Cave-ins . | . . . . Cave-ins Triggered . | . . . . Exploration Rate (%) 52 | 4 99 98 7 Regions Visited 3 Branch Regions 2 Pre-discovered Areas . | . . . . Known Exits Taken . | . . . . Unknown Exits Taken 3 | 1 1 1 . Scrap Searched 2 | . . 2 . Spaces Dug . | . . . . Terrain Destroyed 25 | . . 10 15 Melee . | . . . . Projectile 4 | . . 4 . AOE 21 | . . 6 15 Terrain Rammed . | . . . . Walls Destroyed . | . . . . Machines Disabled . | . . . . Actions | -11 -10 -10 -10 --------- Run | Yrd Mat Min Sub Total 2964 | 82 1772 909 201 Wait 483 | 4 376 66 37 Move 2294 | 59 1304 798 133 Hop . | . . . . Pick Up 30 | 5 19 5 1 Fast Attach 11 | 7 4 . . Attach 7 | . 2 . 5 Detach . | . . . . Swap 22 | . 10 6 6 Drop 18 | . 15 2 1 Fire 97 | 7 42 32 16 Melee 2 | . . . 2 Ram . | . . . . Kick . | . . . . Crush . | . . . . Escape Stasis . | . . . . Rewire . | . . . . Trap . | . . . . Miscellaneous . | . . . . Route ------- -11/Scrapyard -10/Materials (discovered 5 exits: [*Mat x3] / [*Min] / [*Sub]) -10/Mines (discovered 4 exits: [*Mat x2] / [*Exi] / [*Sub]) -10/Subcaves History --------- Turn | Location | Event 10 | -11/Scrapyard | Discovered new exit (range 16) 110 | -11/Scrapyard | Entered Materials 250 | -10/Materials | Discovered new exit (range 11) 314 | -10/Materials | Build established: Mutant 493 | -10/Materials | Discovered new exit (range 15) 496 | -10/Materials | Discovered new exit (range 7) 1039 | -10/Materials | Discovered new exit (range 14) 1718 | -10/Materials | Discovered new exit (range 8) 2116 | -10/Materials | Central database locked down 2253 | -10/Materials | Repaired Med. Armor Plating 2451 | -10/Materials | Entered Mines 2451 | -10/Mines | Accompanied by 2 allies 2452 | -10/Mines | Assembled infested the area 2457 | -10/Mines | Assisted by a Guerilla fighting off Assembled 2564 | -10/Mines | Received a Rocket Launcher from a helpful Derelict 2603 | -10/Mines | Learned Materials stockpile data 2851 | -10/Mines | Found a damaged Exp. Sensor Array with a note attached 2854 | -10/Mines | Found Prototype Device 2863 | -10/Mines | Identified Exp. Sensor Array 2886 | -10/Mines | Discovered new exit (range 14) 2926 | -10/Mines | Discovered new exit (range 8) 3472 | -10/Mines | Deemed a non-threat by the Exiles lab entrance 3472 | -10/Mines | Discovered new exit (range 5) 3535 | -10/Mines | Discovered new exit (range 9) 3545 | -10/Mines | Entered Subcaves 3561 | -10/Subcaves | A swath of the cavern ceiling suddenly collapsed 3621 | -10/Subcaves | Core integrity fell below 50% 3644 | -10/Subcaves | Lost 4 parts (1n1u2w) 3771 | -10/Subcaves | Core integrity fell below 20% 3786 | -10/Subcaves | Destroyed by OW-7DN(R) with Subdweller Shrapnel Launcher Last Messages --------------- 03607_ BB-LWL(R) destroyed. 03613_ System corrupted: Matter fused (-6). 03613_ The unstable cave ceiling collapses. 03613_ Imp. Light Cannon destroyed. 03614_ Subatomizers dissect the Corrupted Sub. Optics. 03619_ OW-7DN(R) affixes Scrap Shield Fragment to Scrap Shield. 03623_ OW-7DN(R) knocked back. 03626_ Destroyed Scrap Shield. 03627_ The unstable cave ceiling collapses. 03643_ Subatomizers dissect the Corrupted Sub. Optics. 03655_ Acquired 10 matter. 03659_ Acquired 6 matter. 03711_ Dropped Hacking Suite. 03713_ Acquired Lgt. Humpback. 03763_ Com. Wheel destroyed. 03770_ Chain reaction triggered in Ion Engine. 03785_ System corrupted: Matter fused (-10). Map ----- +----------------------------------------------------+ | ?????????????????????????????????????????????????? | | ?????????????????????????????????????????????????? | | ?????????????????????????????????????????????????? | | ?????????????????????????????????????????????????? | | ?????????????????????????????????????????????????? | | ?????????????????????????????????????????????????? | | ?????????????????????????????????????????????????? | | ???????????????????????????#### ?????????????????? | | ???????????????????????????# ?????????????????? | | ????????????????????? ???# ?????????????????? | | ???????????????????? ??# ?????????????????? | | ????????????????????? #?# ?????????????????? | | ???????????????????#?? ## ?????????????????? | | ???????????????????# ?? #?????????????????? | | ???????????????????? ?? ###???????????????? | | ??????????????????#?? ## ????????????????? | | ??????????????????# ??? ????????????????? | | ??????????????????? ???? ?????????????????? | | ??????????????????## ? ??# #?????????????????? | | ??????????????????# #???# ##????????????????? | | ??????????????????#"" #????# ##????? ????????? | | ??????????????????# ???#" #???? #???????? | | ??????????????????## ???#" #???? #???????? | | ?????????????????# " "?## ##???? ???????? | | ???????????###### ## "R## ##????? ????????? | | ??????????? % ????#@ ##?????? ????????? | | ???????????? #????# #????? #????????? | | ????????????? #????### #????? ?????????? | | ???????????### ! #??????## #????? ?????????? | | ???????????## ######## ##????? ??????????? | | ??????????## #" # #????? ??????????? | | ??????????# " " #########??????????? | | ??????????# ### # ## ##?????????? | | ??????????# ""##### #### #?????????? | | ??????????## ## #?# ###?????????? | | ???????????# ## #### ## ###????????? | | ??????????## ## ## ##???????? | | ??????????# """# # ### #???????? | | ??????????# "" #?## ####?????? | | ??????????## # ### #??# #?????? | | ???????????# ## ######??# ##?????? | | ???????????# """ # ## # ###### #??????? | | ???????????# "" ### #??????? | | ???????????### ## ! ##??????? | | ?????????????###### # # ### #???????? | | ??????????????????###### ##########?###???????? | | ???????????????????????# ## #????????????????????? | | ???????????????????????######????????????????????? | | ?????????????????????????????????????????????????? | | ?????????????????????????????????????????????????? | +----------------------------------------------------+ Best States ------------- Heat Dissipation 39 Energy Generation 10 Energy Capacity 250 Matter Stores 300 Matter Capacity 300 Sight Range 16 Terrain Scan Range 16 Terrain Scan Density 10 Armor Coverage 225 Evasion (%) 55 Item Schematics ----------------- None Robot Schematics ------------------ None Fabricated ------------ Nothing Repaired ---------- Med. Armor Plating | 61% | -10/Materials Studied --------- None Alien Tech Used ----------------- None Achievements -------------- None Challenges ------------ None Game ------ Seed RagnarokMiniShearcannon Manual? 0 Play Time 00:30:21 Cumulative 685.8 hours Start 2025.11.14 @ 01:22:41 End 2025.11.14 @ 01:54:51 Sessions 1 Manual Loads 0 Difficulty Rogue Special Mode None Game No. 482 Rogue 482 Adventurer 0 Explorer 0 Win Type - Total 1 Types 1/0/0/0/0/0/0/0/0/0 Lore% 65 Gallery% 67 Achievement% 43 Wizard Run 0 Options --------- Layout 1 ASCII 0 Keyboard 0 Movement Mouse Keybinds 0 Fullscreen 1 Font 20/SmallcapsGlow Map View 54x42 Zoom Use 0% Tactical HUD 1 Map Filters NONE Filters NONE Steam 1 RUN: 9a1f339d-c4f4-404c-add1-c66b599dddef